Cogmind - Beta 13 @@@ ROGUE MODE // 2024.04.09 @ 19:36:38 Player: graour Result: Destroyed by G-67 Veteran with Field Laser Performance ------------- Evolutions (7) 3500 Regions Visited (7) 1400 Robots Destroyed (56) 280 Value Destroyed (2266) 2266 Prototype IDs (6) 120 Alien Tech Used (0) 0 Bonus (212) 212 TOTAL SCORE: 7778 Bonus ------- Follower Combat Kills 212 Cogmind --------- Core Integrity 0/1300 Matter 36/300 Energy 100/100 System Corruption 23% Temperature Cool (42) Movement Core (1350) Ox26 Location -3/Research Parts ------- > --- POWER (3) -------- (None) > --- PROPULSION (4) --- (None) > --- UTILITY (9) ------ Huge Storage Unit > --- WEAPON (5) ------- (None) > --- INVENTORY (25) --- Backup Power III Improved Deuterium Engine Light Angular Momentum Engine Cold Fusion Reactor Cold Fusion Reactor Cold Fusion Reactor Neutrino Core Enhanced Flexi-carbon Leg Enhanced Flexi-carbon Leg Backup Propulsion III Backup Propulsion III Backup Propulsion III Advanced Power Amplifier Gravity Neutralizer Improved Melee Analysis Suite Microactuators Peak State ------------ > --- POWER ------------ Neutrino Core Antimatter Reactor Light Antimatter Reactor > --- PROPULSION ------- Enhanced Armored Leg Enhanced Armored Leg Enhanced Armored Leg Enhanced Armored Leg > --- UTILITY ---------- Armored Scrap Engine Improved Heat Sink Huge Storage Unit Advanced Weight Redist. System Targeting Computer Backup Plating III Advanced Shield Generator Remote Force Field > --- WEAPON ----------- Backup Laser III Backup Laser III Heavy Laser Cooled Particle Cannon Linear Accelerator > --- INVENTORY -------- Backup Power III Improved Deuterium Engine Light Angular Momentum Engine Cold Fusion Reactor Cold Fusion Reactor Cold Fusion Reactor Neutrino Core Micro Fission Core Light Antimatter Reactor Light Antimatter Reactor Carbon-fiber Leg Enhanced Flexi-carbon Leg Enhanced Flexi-carbon Leg Armored Huge Wheel Backup Propulsion III Backup Propulsion III Backup Propulsion III Backup Propulsion III Backup Propulsion III Antigrav System Advanced Power Amplifier Gravity Neutralizer Improved Melee Analysis Suite Microactuators [Rating: 124] Favorites ----------- Power Light Ion Engine Engine Light Ion Engine Power Core Neutrino Core Reactor Antimatter Reactor Propulsion Light Treads Treads Light Treads Leg Enhanced Armored Leg Wheel Armored Huge Wheel Hover Unit Improved Gravmag System Utility Scrap Engine Device Scrap Engine Storage Huge Storage Unit Processor Targeting Computer Hackware Improved Hacking Suite Protection Improved Light Armor Plating Weapon Shotgun Energy Gun Backup Laser III Energy Cannon Heavy Particle Cannon Ballistic Gun Shotgun Ballistic Cannon Assault Cannon Build | -11 -10 -10 -8 -6 -5 -4 -3 ------- Run | Yrd Mat Sub Rec Fac Fac Fac Res Slots Evolved 14 | . . . . 8 2 2 2 Power 2 | . . . . 1 . . 1 Propulsion 2 | . . . . 2 . . . Utility 7 | . . . . 4 . 2 1 Weapon 3 | . . . . 1 2 . . Parts Attached 102 | 6 7 2 4 32 17 16 18 Power 21 | 1 . . 1 5 4 1 9 Engine 8 | 1 . . 1 3 2 . 1 Core 6 | . . . . 2 2 . 2 Reactor 7 | . . . . . . 1 6 Propulsion 29 | 2 . . . 11 3 8 5 Treads 3 | 2 . . . 1 . . . Leg 15 | . . . . 7 2 4 2 Wheel 2 | . . . . . 1 . 1 Hover 9 | . . . . 3 . 4 2 Flight . | . . . . . . . . Utility 29 | 1 5 . 1 10 6 4 2 Device 12 | . . . 1 6 2 2 1 Storage 6 | 1 3 . . 1 1 . . Processor 4 | . 2 . . 1 1 . . Hackware 1 | . . . . . . 1 . Protection 6 | . . . . 2 2 1 1 Artifact . | . . . . . . . . Weapon 23 | 2 2 2 2 6 4 3 2 Energy Gun 7 | 1 . . . . 2 3 1 Energy Cannon 4 | . . . 1 1 2 . . Ballistic Gun 8 | 1 2 2 . 3 . . . Ballistic Cannon 4 | . . . 1 2 . . 1 Launcher . | . . . . . . . . Special Weapon . | . . . . . . . . Impact Weapon . | . . . . . . . . Slashing Weapon . | . . . . . . . . Piercing Weapon . | . . . . . . . . Special Melee Weapon . | . . . . . . . . Unidentified Prototypes 4 | . . . . 1 1 1 1 Corrupted Parts 1 | . . . . 1 . . . System Corruption 4 | . . . . 4 . . . Parts Lost 52 | . . . . 8 14 . 30 Power 9 | . . . . 1 2 . 6 Propulsion 15 | . . . . 2 4 . 9 Utility 13 | . . . . 1 3 . 9 Weapon 15 | . . . . 4 5 . 6 Highest Loss Streak 23 | . . . . 2 10 . 23 To Critical Strikes . | . . . . . . . . Average Slot Usage (%) 81 | . 99 100 85 69 59 79 81 Engine 8 | . 14 14 14 8 2 . . Core 1 | . . . . . 5 8 3 Reactor 1 | . . . . . . 1 7 Treads 13 | . 28 28 28 3 . . . Leg 6 | . . . . 7 8 14 18 Hover 1 | . . . . 4 . . . Device 12 | . . . 13 18 13 16 18 Storage 5 | . 19 14 . . 4 5 4 Processor 4 | . 8 14 . 2 3 5 3 Protection 1 | . . . . 3 2 3 3 Energy Gun 2 | . . . . . 4 15 9 Energy Cannon 4 | . . . 6 5 3 5 3 Ballistic Gun 11 | . 26 28 12 7 2 . . Ballistic Cannon 3 | . . . 8 3 . . 3 Naked Turns . | . . . . . . . . Heaviest Build 166 | 12 24 19 21 44 123 139 166 Greatest Support 89 | 40 40 40 40 72 72 89 89 Greatest Overweight (x) 37 | 1 . . . 11 30 37 26 Average Overweight (x) . | . . . . . 3 2 1 Largest Inventory Capacity 25 | 8 25 10 10 25 25 25 25 Average Capacity 12 | 6 10 10 5 5 23 25 25 Most Carried 25 | 6 10 10 10 5 14 25 25 Average Carried 9 | 3 9 9 4 4 5 19 24 Final Capacity 25 | 8 10 10 5 5 25 25 25 Final Carried 25 | 6 10 10 5 5 14 25 16 Scrap Engine Consumption 13 | . . . . 9 4 . . Constructs Created 3 | . . . . 1 . . 2 Constructs Modified 1 | . . . . 1 . . . Class Distribution -------------------- 37% | Mutant 17% | Commander-Mutant 15% | Tank 8% | Scavenger-Tank 7% | Scavenger-Mutant 5% | Commander-Tank 3% | Commander-Gunner Dominant Class ---------------- Mutant | -10/Materials Mutant | -10/Subcaves Commander-Mutant | -8/Recycling Tank | -6/Factory Scavenger-Mutant | -5/Factory Scavenger-Gunner | -4/Factory Tank | -3/Research Resources | -11 -10 -10 -8 -6 -5 -4 -3 ----------- Run | Yrd Mat Sub Rec Fac Fac Fac Res Matter Collected 1796 | 165 267 141 72 628 287 . 236 Remotely . | . . . . . . . . Salvage Created 2648 | . 455 56 134 1006 648 . 349 Parts 109 | . 26 1 7 50 16 . 9 Haulers Intercepted 3 | . 1 . . 1 1 . . Recyclers Shooed 6 | . 2 . 2 . 1 . 1 Parts Field Recycled . | . . . . . . . . Retrieved Matter . | . . . . . . . . Parts Self-Destructed 16 | . . 16 . . . . . Prevented . | . . . . . . . . Kills | -11 -10 -10 -8 -6 -5 -4 -3 ------- Run | Yrd Mat Sub Rec Fac Fac Fac Res Combat Hostiles Destroyed 40 | . 6 . 3 14 9 . 8 Guns 23 | . 6 . 1 8 6 . 2 Cannons 17 | . . . 2 6 3 . 6 Classes Destroyed 15 | . 6 1 2 3 1 . 2 Worker 2 | . 1 . . 1 . . . Builder 3 | . 1 . . 2 . . . Tunneler 1 | . . . . 1 . . . Hauler 3 | . 1 . . 1 1 . . Recycler 2 | . 2 . . . . . . Turret 2 | . . 2 . . . . . Watcher 3 | . 2 . . 1 . . . Swarmer 3 | . . . . . . . 3 Grunt 21 | . 6 . 1 8 5 . 1 Brawler 1 | . . . . 1 . . . Duelist 1 | . . . . . 1 . . Protector 1 | . . . 1 . . . . Sentry 4 | . . . 1 2 1 . . Hunter 2 | . . . . . . . 2 Programmer 7 | . . . . 3 2 . 2 Best Kill Streak 8 | . 3 2 1 8 2 . 3 Combat Bots Only 3 | . 2 . 1 3 2 . 3 Max Kills in Single Turn 2 | . 1 1 1 2 1 . 1 Gunslinging . | . . . . . . . . Exploded . | . . . . . . . . Melee . | . . . . . . . . Uniques/NPCs Destroyed . | . . . . . . . . Combat | -11 -10 -10 -8 -6 -5 -4 -3 -------- Run | Yrd Mat Sub Rec Fac Fac Fac Res Hostile Shots Fired 635 | . 9 33 26 92 101 . 374 Missed 160 | . 4 15 5 30 22 . 84 Damage Taken 9267 | . 56 114 309 1071 1863 57 5797 Core 1843 | . . 13 40 66 424 . 1300 Absorbed by Shields 651 | . . . 10 64 . . 577 Core Remaining (%) 85 | 100 . . 78 92 57 100 . Volleys Fired 162 | . 25 5 6 38 47 . 41 Largest 5 | . 2 2 2 3 4 . 5 Hottest 310 | . 46 45 119 172 310 . 245 Shots Fired 346 | . 50 10 12 107 72 . 95 Gun 207 | . 50 10 4 61 49 . 33 Cannon 139 | . . . 8 46 23 . 62 Launcher . | . . . . . . . . Special . | . . . . . . . . Kinetic 197 | . 50 10 8 69 24 . 36 Thermal 131 | . . . 4 33 41 . 53 Explosive . | . . . . . . . . Electromagnetic 18 | . . . . 5 7 . 6 Robot Hit Streak 12 | . 8 4 5 9 12 . 9 Robot Miss Streak 8 | . 4 4 3 8 2 . 3 Penetration Max 2 | . . . . 2 . . . Secondary Targets 3 | . . . . 2 1 . . Max Gunslinging Chain 1 | . . . . 1 1 . . Shots Hit Robots 238 | . 38 6 7 65 59 . 63 Core Hits 131 | . 25 3 5 45 26 . 27 Critical Kills 4 | . 1 . . 1 2 . . Critical Parts Destroyed 5 | . . . . 3 2 . . Critical Strikes 11 | . 1 . . 4 4 . 2 Destroy 9 | . 1 . . 4 4 . . Blast 2 | . . . . . . . 2 Melee Attacks . | . . . . . . . . Impact . | . . . . . . . . Slashing . | . . . . . . . . Piercing . | . . . . . . . . Sneak Attacks . | . . . . . . . . Combat Hostiles . | . . . . . . . . Follow-up Attacks . | . . . . . . . . Damage Inflicted 6017 | . 629 86 146 1750 1337 . 2069 Guns 2895 | . 608 86 44 1016 826 . 315 Cannons 3043 | . . . 93 718 482 . 1750 Explosions . | . . . . . . . . Melee . | . . . . . . . . Ramming 79 | . 21 . 9 16 29 . 4 Kinetic 3471 | . 608 86 87 1141 417 . 1132 Thermal 2209 | . . . 50 518 781 . 860 Explosive . | . . . . . . . . Electromagnetic 258 | . . . . 75 110 . 73 Impact . | . . . . . . . . Slashing . | . . . . . . . . Piercing . | . . . . . . . . Highest Corruption 23 | . . . 1 6 2 . 23 Average Corruption 2 | . . . 1 3 2 . 10 Corruption Purged . | . . . . . . . . Corruption Blocked . | . . . . . . . . Effects 19 | . . . 2 6 4 . 7 Message Errors 3 | . . . . 1 1 . 1 Matter Fused 6 | . . . . 3 1 . 2 Heat Flow Errors 2 | . . . 1 . 1 . . Energy Discharges 3 | . . . . 2 . . 1 Parts Rejected 2 | . . . . . . . 2 Data Loss (minor) 1 | . . . . . 1 . . Alerts 1 | . . . 1 . . . . Weapon Failures 1 | . . . . . . . 1 Overload Shots . | . . . . . . . . Overflow Damage 19 | . . . . . 4 . 15 Projectiles 15 | . . . . . . . 15 Explosions . | . . . . . . . . Melee 4 | . . . . . 4 . . Knockbacks 16 | . . . . 3 . . 13 Impact . | . . . . . . . . Kinetic 15 | . . . . 3 . . 12 Secondary 1 | . . . . . . . 1 Self-Inflicted Damage 16 | . . . . . 14 . 2 Shots . | . . . . . . . . Rammed 9 | . 2 . 4 . 1 . 2 Targets Rammed 12 | . 3 . 4 2 1 . 2 Kicked 2 | . . . . 2 . . . Crushed 1 | . 1 . . . . . . Highest Temperature 637 | . 1 . 269 340 637 . 452 Average Temperature 166 | . 1 . 76 112 267 . 197 Received Heat Transfer 2247 | . 30 96 7 278 612 . 1224 Effects 26 | . . . . 1 18 . 7 Shutdowns 9 | . . . . 1 4 . 4 Energy Bleed 2 | . . . . . 1 . 1 Interference 4 | . . . . . 4 . . Matter Decay 3 | . . . . . 2 . 1 Short Circuit 3 | . . . . . 2 . 1 Damage (major) 4 | . . . . . 4 . . Damage (core) 1 | . . . . . 1 . . Siege Activations . | . . . . . . . . Robots Corrupted . | . . . . . . . . Combat Hostiles . | . . . . . . . . Parts Fried . | . . . . . . . . Impact Corruptions 1 | . . . . . 1 . . Robots Melted . | . . . . . . . . Combat Hostiles . | . . . . . . . . Parts Melted 8 | . . . . . 5 . 3 Heat Transferred 3566 | . . . 74 791 1295 . 1406 Parts Sabotaged . | . . . . . . . . Parts Stolen . | . . . . . . . . Parts Stripped . | . . . . . . . . Power Chain Reactions . | . . . . . . . . Alert | -11 -10 -10 -8 -6 -5 -4 -3 ------- Run | Yrd Mat Sub Rec Fac Fac Fac Res Peak Influence 315 | . 152 . 129 315 166 20 105 Initial 99 | . . . 67 . 99 20 . Average 59 | . 49 . 62 69 94 19 52 Maximum Alert Level 1 | . . . . 1 . . . Low Security (%) 96 | 100 100 . 100 85 100 100 100 Level 1 3 | . . . . 14 . . . Level 2 . | . . . . . . . . Level 3 . | . . . . . . . . Level 4 . | . . . . . . . . Level 5 . | . . . . . . . . High Security . | . . . . . . . . Max Security . | . . . . . . . . Squads Dispatched 14 | . 3 . . 6 2 . 3 Investigation 3 | . 2 . . . . . 1 Extermination 5 | . . . . 2 1 . 2 Reinforcement 4 | . 1 . . 2 1 . . Assault . | . . . . . . . . Garrison 2 | . . . . 2 . . . Intercept . | . . . . . . . . Searches Triggered . | . . . . . . . . Construction Impeded . | . . . . . . . . Haulers Reinforced 3 | . . . . 2 1 . . Active Scanning Responses . | . . . . . . . . Cargo Convoy Interrupts . | . . . . . . . . Stealth | -11 -10 -10 -8 -6 -5 -4 -3 --------- Run | Yrd Mat Sub Rec Fac Fac Fac Res Distress Signals 2 | . . . . . 2 . . Communications Jammed . | . . . . . . . . Distress Signals . | . . . . . . . . Times Spotted 89 | . 10 12 9 20 14 . 24 Peak Tracking Total 11 | . 2 2 5 5 6 . 11 Tactical Retreats 6 | . . 2 1 1 1 . 1 Traps | -11 -10 -10 -8 -6 -5 -4 -3 ------- Run | Yrd Mat Sub Rec Fac Fac Fac Res Traps Triggered 6 | . 2 . . 2 . 1 1 Indirectly . | . . . . . . . . Trap Hack Attempts . | . . . . . . . . Triggered . | . . . . . . . . Disarmed . | . . . . . . . . Reprogrammed . | . . . . . . . . Reused . | . . . . . . . . Traps Extracted . | . . . . . . . . Installed . | . . . . . . . . Triggered . | . . . . . . . . Machines | -11 -10 -10 -8 -6 -5 -4 -3 ---------- Run | Yrd Mat Sub Rec Fac Fac Fac Res Machines Disabled 2 | . . 1 . 1 . . . Max in Single Turn 1 | . . 1 . . . . . Machines Repaired . | . . . . . . . . Machines Dismantled . | . . . . . . . . Machines Sabotaged . | . . . . . . . . Overloaded Fab Kills . | . . . . . . . . Hacking | -11 -10 -10 -8 -6 -5 -4 -3 --------- Run | Yrd Mat Sub Rec Fac Fac Fac Res Machines Accessed 13 | . 2 . 4 4 1 . 2 Terminals 11 | . 2 . 4 4 . . 1 Fabricators 1 | . . . . . 1 . . Repair Stations . | . . . . . . . . Recycling Units . | . . . . . . . . Scanalyzers 1 | . . . . . . . 1 Garrison Access . | . . . . . . . . Total Hacks 24 | . 3 . 11 7 1 . 2 Successful 8 | . 1 . 6 1 . . . Failed 16 | . 2 . 5 6 1 . 2 Catastrophic 7 | . 1 . 1 3 1 . 1 Database Lockouts . | . . . . . . . . Manual 8 | . 2 . 5 . . . 1 Terminals 22 | . 3 . 11 7 . . 1 Fabricators 1 | . . . . . 1 . . Repair Stations . | . . . . . . . . Recycling Units . | . . . . . . . . Scanalyzers 1 | . . . . . . . 1 Garrison Access . | . . . . . . . . Terminal Hacks 8 | . 1 . 6 1 . . . Record 4 | . . . 4 . . . . Robot Schematic 1 | . . . 1 . . . . Unreport Threat 1 | . . . . 1 . . . Zone Layout 2 | . 1 . 1 . . . . Fabricator Hacks . | . . . . . . . . Repair Station Hacks . | . . . . . . . . Recycling Unit Hacks . | . . . . . . . . Scanalyzer . | . . . . . . . . Garrison Access Hacks . | . . . . . . . . Unauthorized Hacks . | . . . . . . . . Terminals . | . . . . . . . . Fabricators . | . . . . . . . . Repair Stations . | . . . . . . . . Recycling Units . | . . . . . . . . Scanalyzers . | . . . . . . . . Garrison Access . | . . . . . . . . Data Cores Recovered . | . . . . . . . . Used . | . . . . . . . . Hacking Detections 10 | . 1 . 2 4 1 . 2 Full Trace Events . | . . . . . . . . Feedback Events . | . . . . . . . . Feedback Blocked . | . . . . . . . . Robot Schematics Acquired 1 | . . . 1 . . . . Robots Built . | . . . . . . . . Authchips . | . . . . . . . . Time . | . . . . . . . . Total Robot Build Rating . | . . . . . . . . Part Schematics Acquired . | . . . . . . . . Parts Built . | . . . . . . . . Authchips . | . . . . . . . . Time . | . . . . . . . . Total Part Build Rating . | . . . . . . . . Parts Repaired . | . . . . . . . . Time . | . . . . . . . . Parts Recycled . | . . . . . . . . Recycled Matter . | . . . . . . . . Retrieved Matter . | . . . . . . . . Retrieved Components . | . . . . . . . . Parts Scanalyzed . | . . . . . . . . Part Schematics Acquired . | . . . . . . . . Parts Damaged . | . . . . . . . . Bothacking | -11 -10 -10 -8 -6 -5 -4 -3 ------------ Run | Yrd Mat Sub Rec Fac Fac Fac Res Used RIF Installer . | . . . . . . . . Robots Hacked . | . . . . . . . . Non-combat . | . . . . . . . . Combat . | . . . . . . . . Robot Hacks Applied . | . . . . . . . . Relay Couplers Released . | . . . . . . . . Fabnet Peak Effective % . | . . . . . . . . Robots Rewired 21 | . . . 21 . . . . Allies Hacked 1 | . . . 1 . . . . Hacks Repelled . | . . . . . . . . Allies | -11 -10 -10 -8 -6 -5 -4 -3 -------- Run | Yrd Mat Sub Rec Fac Fac Fac Res Total Allies 21 | . . . 21 . . . . Largest Group 20 | . . . 20 20 . . . Highest-Rated Group 280 | . . . 280 280 . . . Highest-Rated Ally 27 | . . . 27 27 . . . Total Orders . | . . . . . . . . Ally Attacks 43 | . . . 31 12 . . . Total Damage 1010 | . . . 477 533 . . . Kills 11 | . . . 6 5 . . . Allies Corrupted . | . . . . . . . . Allies Melted . | . . . . . . . . Intel | -11 -10 -10 -8 -6 -5 -4 -3 ------- Run | Yrd Mat Sub Rec Fac Fac Fac Res Robot Analysis Total . | . . . . . . . . Derelict Logs Recovered 1 | . . 1 . . . . . Drone Launches . | . . . . . . . . Drone Recoveries . | . . . . . . . . Exploration | -11 -10 -10 -8 -6 -5 -4 -3 ------------- Run | Yrd Mat Sub Rec Fac Fac Fac Res Turns Passed 5818 | 88 967 413 1257 1255 636 410 792 Spaces Moved 2391 | 52 258 238 571 585 219 167 301 Core 30 | 9 . . . 14 3 3 1 Treads 1336 | 43 258 238 571 226 . . . Legs 859 | . . . . 333 91 139 296 Wheels 151 | . . . . . 125 22 4 Hover 15 | . . . . 12 . 3 . Flight . | . . . . . . . . Fastest Speed 50 | 50 160 160 160 62 120 160 145 Average Speed 176 | 142 160 160 160 173 212 226 195 Slowest Speed 1900 | 160 160 160 160 600 1550 1900 1350 Overloaded Moves . | . . . . . . . . Propulsion Burnouts . | . . . . . . . . Robots Hopped . | . . . . . . . . Cave-ins Triggered . | . . . . . . . . Exploration Rate (%) 23 | 4 42 13 97 16 5 3 7 Regions Visited 7 Branch Regions 2 Pre-discovered Areas 1 | . . 1 . . . . . Known Exits Taken . | . . . . . . . . Unknown Exits Taken 7 | 1 1 1 1 1 1 1 . Scrap Searched . | . . . . . . . . Spaces Dug . | . . . . . . . . Terrain Destroyed 18 | . . . 4 1 6 . 7 Melee . | . . . . . . . . Projectile 18 | . . . 4 1 6 . 7 AOE . | . . . . . . . . Terrain Rammed . | . . . . . . . . Walls Destroyed . | . . . . . . . . Machines Disabled . | . . . . . . . . Actions | -11 -10 -10 -8 -6 -5 -4 -3 --------- Run | Yrd Mat Sub Rec Fac Fac Fac Res Total 3660 | 63 762 260 903 732 319 197 424 Wait 608 | . 453 14 8 56 23 . 54 Move 2384 | 51 257 237 570 584 218 166 301 Hop . | . . . . . . . . Pick Up 44 | 6 9 1 5 3 11 7 2 Fast Attach 64 | 6 5 . 4 28 8 10 3 Attach 24 | . . . . 2 6 5 11 Detach 15 | . 2 . 1 2 1 8 1 Swap 14 | . 2 2 . 2 3 1 4 Drop 37 | . 6 1 9 15 1 . 5 Fire 162 | . 25 5 6 38 47 . 41 Melee . | . . . . . . . . Ram 3 | . . . . . 1 . 2 Kick 2 | . . . . 2 . . . Crush 7 | . 3 . 4 . . . . Escape Stasis . | . . . . . . . . Rewire 296 | . . . 296 . . . . Trap . | . . . . . . . . Miscellaneous . | . . . . . . . . Route ------- -11/Scrapyard -10/Materials (discovered 3 exits: [*Mat] / [*Min] / [*Sub]) -10/Subcaves -8/Recycling -6/Factory -5/Factory -4/Factory -3/Research History --------- Turn | Location | Event 6 | -11/Scrapyard | Discovered new exit (range 15) 89 | -11/Scrapyard | Entered Materials 89 | -10/Materials | Discovered new exit (range 8) 318 | -10/Materials | Build established: Mutant 434 | -10/Materials | Discovered new exit (range 15) 1050 | -10/Materials | Discovered new exit (range 5) 1056 | -10/Materials | Entered Subcaves 1096 | -10/Subcaves | Learned location of Zion (-6) 1096 | -10/Subcaves | Met a Zionite searching for "candidates" 1110 | -10/Subcaves | Shifting Twisted Machinery released Battle Rifle 1140 | -10/Subcaves | Learned Materials interactive machine intel 1185 | -10/Subcaves | Discovered new exit (range 12) 1469 | -10/Subcaves | Entered Recycling 1477 | -8/Recycling | Found Scrap Engine 2040 | -8/Recycling | Build established: Commander-Mutant 2102 | -8/Recycling | Discovered new exit (range 5) 2726 | -8/Recycling | Entered Factory 2726 | -6/Factory | Accompanied by 20 allies 2726 | -6/Factory | Evolved 8 slots: Power x1, Propulsion x2, Utility x4, Weapon x1 2864 | -6/Factory | Lost 11 allies 2908 | -6/Factory | Lost 4 allies 3257 | -6/Factory | Build established: Commander-Tank 3305 | -6/Factory | Lost 4 allies 3326 | -6/Factory | Discovered new exit (range 4) 3577 | -6/Factory | Build established: Tank 3757 | -6/Factory | P-60 Hacker assimilated allied Excavator 3a 3784 | -6/Factory | Garrison activated, responded to threat 3945 | -6/Factory | Build established: Scavenger-Tank 3981 | -6/Factory | Entered another Factory area 3981 | -5/Factory | Evolved 2 slots: Weapon x2 4172 | -5/Factory | Lost 10 parts (2p3n2u3w) 4290 | -5/Factory | Lost 3 parts (1u2w) 4550 | -5/Factory | Discovered new exit (range 16) 4566 | -5/Factory | Build established: Scavenger-Mutant 4617 | -5/Factory | Entered another Factory area 4617 | -4/Factory | Evolved 2 slots: Utility x2 4893 | -4/Factory | Discovered new exit (range 9) 5027 | -4/Factory | Entered Research 5027 | -3/Research | Evolved 2 slots: Power x1, Utility x1 5252 | -3/Research | Build established: Tank 5491 | -3/Research | Spotted B-86 Titan 5546 | -3/Research | Lost 5 parts (2u3w) 5641 | -3/Research | Found Adv. Powered Armor 5741 | -3/Research | System corruption reached 10% 5797 | -3/Research | Build established: Mutant 5799 | -3/Research | Core integrity fell below 50% 5816 | -3/Research | Core integrity fell below 20% 5819 | -3/Research | Destroyed by G-67 Veteran with Field Laser Last Messages --------------- 05810_ M-36 Artificer repairs G-67 Veteran. 05811_ Knocked back. 05811_ Critical hit (Burn: +50). 05811_ U-05 Engineer destroyed. 05812_ M-36 Artificer repairs Adv. Heat Sink. 05814_ R-10 Processor collects Backup Propulsion III. 05814_ Lgt. Antimatter Reactor destroyed. 05814_ M-36 Artificer repairs Flexi-carbon Leg. 05815_ Lgt. Antimatter Reactor destroyed. 05815_ Arm. Huge Wheel destroyed. 05815_ Slammed into R-10 Processor. 05816_ R-10 Processor collects Corrupted Terrain Scan Processor. 05816_ G-67 Veteran Flexi-carbon Leg blasted off. 05816_ G-67 Veteran knocked back. 05817_ R-10 Processor collects Structural Scanner. 05819_ Mic. Fission Core destroyed. Map ----- +----------------------------------------------------+ | #???????????????????????????????????????????????? | | !#???????????????????????????????????????????????? | | #???????????????????????????????????????????????? | | #???????????????????????????????????????????????? | | #???????????????????????????????????????????????? | | *#???#####?????#?????????????????????????????????? | | #???# """" #?????????????????????????????????? | | ###### """" #?????????????????????????????????? | | # """" #?????????????????????????????????? | | # """" #?????????????????????????????????? | | # #?????????????????????????????????? | | # ??????????????????????????????????? | | # # ????????????????????????????????????? | | # # ??????????????????????????????????????? | | # ###+####?????##?????????????????????????????? | | # #???? ?????????????????????????????? | | # #???? ????????????????????????????? | | # #????? ! ????????????????????????????? | | # #????? ????????????????????????????? | | ######## #??????" ????????????????????????????? | | #??????# #??????"T????????????????????????????? | | #??????# ###+###############??????????????????? | | ???????# # g #??????????????????? | | ???????+ # Rpg #??????????????????? | | ???????# # g%Hg #??????????????????? | | ???????# """ #%uRgg@ #??????????????????? | | ???????# """ # RR%m #??????????????????? | | ???????# """ # %% pg #??????????????????? | | ???????# """ ###+############??????????????? | | ???????# " % ???????????? | | ???????+ ???????????? | | ???????# % ???????????? | | ???????# ????????????? | | ???????####"### #################+????????????? | | ############### %# ??????????????????????????? | | # # %%# ??????????????????? | | # + + ??????????????????? | | # # % # ??????????????????? | | # = # # ????????????????????? | | # # #? ? ????????????????????? | | # # #??####???????????????????????? | | ############### #?????????????????????????????? | | ??????????????# #?????????????????????????????? | | ?????????????? =/?????????????????????????????? | | ?????????????? |%#?????????????????????????????? | | ????????????? =#?????????????????????????????? | | ????????????? #?????????????????????????????? | | ?????????????## #?????????????????????????????? | | ??????????????# #?????????????????????????????? | | ??????????????? #?????????????????????????????? | +----------------------------------------------------+ Best States ------------- Heat Dissipation 60 Energy Generation 51 Energy Capacity 610 Matter Stores 300 Matter Capacity 300 Sight Range 18 Terrain Scan Range 20 Terrain Scan Density 85 Power Amplification 20 Additional Mass Support 12 Armor Coverage 400 Resistance: TH 10 Melee Speed Boost 20 Evasion (%) 55 Targeting Accuracy 5 Recoil Reduction 2 Offensive Hacking 12 Item Schematics ----------------- None Robot Schematics ------------------ W-16 Scout | -8/Recycling | Hacked Fabricated ------------ Nothing Alien Tech Used ----------------- None Achievements -------------- Tank We Are Legion Challenges ------------ None Game ------ Seed BiocellHypervelocitySpecial Manual? 0 Play Time 00:59:22 Cumulative 19.0 hours Start 2024.04.09 @ 18:33:28 End 2024.04.09 @ 19:36:38 Sessions 1 Manual Loads 0 Difficulty Rogue Special Mode None Game No. 36 Rogue 36 Adventurer 0 Explorer 0 Win Type - Total 0 Types 0/0/0/0/0/0/0/0/0 Lore% 18 Gallery% 28 Achievement% 21 Wizard Run 0 Options --------- Layout 1 ASCII 0 Keyboard 1 Movement Arrows Keybinds 0 Fullscreen 1 Font 24/Smallcaps Map View 50x35 Zoom Use 0% Tactical HUD 1 Map Filters NONE Filters NONE Steam 1 RUN: 59ce9913-c72d-4fac-853f-981734baf33f